bitfinex/quotes_BTCUSD_20230117
["timestamp","ask_amount","ask_price","bid_price","bid_amount"]
[1673971881699,0.19072595,21116.0,21111.0,1.239074]
[1673971881967,0.19072595,21115.0,21112.0,0.1256]
[1673971882242,0.02495071,21116.0,21112.0,0.1256]
[1673971882498,0.02495071,21116.0,21113.0,0.1246]
[1673971883297,0.19130453,21115.0,21111.0,0.599464]
[1673971883560,0.19130453,21115.0,21107.0,0.40237778]
[1673971883561,0.02495071,21112.0,21107.0,0.40237778]
[1673971883826,0.02495071,21110.0,21107.0,0.40237778]
[1673971884408,0.02495071,21110.0,21107.0,0.87614778]
[1673971884409,0.19072595,21109.0,21107.0,0.87614778]
[1673971884641,0.02495071,21110.0,21107.0,0.87614778]
[1673971884892,0.02495071,21112.0,21108.0,0.14329796]
[1673971885151,0.02495071,21112.0,21109.0,0.473728]
[1673971885693,0.02495071,21112.0,21108.0,0.61704296]
[1673971885958,0.21567666,21112.0,21108.0,0.61704296]
[1673971886218,0.02495071,21109.0,21108.0,0.14329796]
[1673971886474,0.02495071,21109.0,21107.0,0.40237778]
[1673971887520,0.00057858,21108.0,21107.0,0.40237778]
[1673971887770,0.02495071,21109.0,21107.0,0.40237778]
[1673971888359,0.00057858,21108.0,21107.0,0.40237778]
[1673971888626,0.92559226,21108.0,21107.0,0.40237778]
[1673971888874,1.87310026,21108.0,21107.0,0.40237778]
[1673971890973,1.93080097,21108.0,21107.0,0.40237778]
[1673971891246,1.80530097,21108.0,21107.0,0.40237778]
[1673971892302,1.33096839,21108.0,21107.0,0.40237778]
[1673971893077,0.02495071,21108.0,21107.0,0.40237778]
[1673971893351,0.02495071,21110.0,21107.0,1.36272825]
[1673971893610,0.02495071,21112.0,21108.0,0.3]
[1673971893897,0.02495071,21112.0,21110.0,0.599506]
[1673971894149,0.15,21113.0,21111.0,1.072972]
[1673971894150,0.17495071,21113.0,21111.0,1.072972]
[1673971895225,0.17495071,21113.0,21109.0,0.95091369]
[1673971895226,0.17495071,21113.0,21110.0,0.1258]
[1673971895482,0.02495071,21113.0,21110.0,0.1258]
[1673971896023,0.02495071,21113.0,21111.0,0.1258]
[1673971896299,0.02495071,21113.0,21112.0,0.473664]
[1673971896840,0.15,21114.0,21112.0,1.38496569]
[1673971897109,0.15,21114.0,21113.0,1.22223169]
[1673971897413,0.15,21114.0,21113.0,2.16951369]
[1673971897943,0.15,21114.0,21113.0,1.692312]
[1673971898206,0.15,21114.0,21113.0,1.558312]
[1673971898777,0.15,21114.0,21113.0,2.36297919]
[1673971899053,0.15,21114.0,21113.0,2.48827919]
[1673971899319,0.15,21114.0,21113.0,2.49677919]
[1673971899577,0.15,21114.0,21113.0,2.97042019]
[1673971901713,0.17495071,21114.0,21113.0,2.41932019]
[1673971901977,0.17495071,21114.0,21113.0,1.94567919]
[1673971903088,0.15,21114.0,21113.0,2.41932019]
[1673971903613,0.19072595,21114.0,21113.0,1.2747475]
[1673971903876,0.02495071,21114.0,21113.0,1.4003475]
[1673971904979,0.02495071,21114.0,21113.0,1.7003475]
[1673971905235,0.02495071,21114.0,21113.0,2.17754919]
[1673971905532,0.02495071,21117.0,21113.0,2.17754919]
[1673971905825,0.02495071,21115.0,21114.0,0.3]
[1673971906091,0.02495071,21115.0,21114.0,1.372838]
[1673971906368,0.21567666,21115.0,21114.0,0.947238]
[1673971906619,0.5429516,21115.0,21111.0,0.473672]
[1673971906924,0.02487326,21112.0,21111.0,0.473672]
[1673971907439,0.02487326,21112.0,21109.0,0.59800354]
[1673971907728,0.21559921,21112.0,21109.0,1.07171954]
[1673971908274,0.00057858,21111.0,21109.0,1.07171954]
[1673971908818,0.02487326,21112.0,21109.0,1.07171954]
[1673971909089,0.02487326,21115.0,21111.0,0.38065616]
[1673971909339,0.02487326,21115.0,21113.0,0.21945452]
[1673971909625,0.02487326,21115.0,21114.0,0.473619]
[1673971910191,0.02487326,21115.0,21114.0,0.773619]
[1673971910470,0.02487326,21115.0,21114.0,1.247238]
[1673971910728,0.02487326,21115.0,21114.0,1.372238]
[1673971911016,0.02487326,21115.0,21114.0,1.072238]
[1673971912568,0.02487326,21115.0,21114.0,1.372238]
[1673971913344,0.02487326,21115.0,21114.0,1.247238]
[1673971913886,0.02487326,21115.0,21114.0,1.371738]
[1673971914160,0.02487326,21118.0,21114.0,1.97413969]
[1673971914423,0.02487326,21118.0,21115.0,0.3]
[1673971914675,0.02487326,21118.0,21116.0,1.420722]
[1673971915487,0.56895601,21121.0,21116.0,1.420722]
[1673971915755,0.02487326,21119.0,21117.0,0.4256]
[1673971916029,0.02487326,21119.0,21118.0,1.546175]
[1673971916302,0.02487326,21119.0,21118.0,1.420575]
[1673971916573,0.02487326,21119.0,21118.0,2.32247669]
[1673971917355,0.02487326,21119.0,21118.0,2.79600569]
[1673971917840,0.02487326,21119.0,21118.0,2.32248069]
[1673971918103,0.00647648,21121.0,21118.0,2.32248069]
[1673971918359,0.00647648,21121.0,21120.0,0.1245]
[1673971918614,0.00647648,21121.0,21120.0,0.72730169]
[1673971918877,0.00647648,21121.0,21120.0,2.62973769]
[1673971919172,0.00647648,21121.0,21120.0,2.92973769]
[1673971919989,0.00647648,21121.0,21120.0,2.92123769]
[1673971921068,0.00647648,21121.0,21120.0,2.92973769]
[1673971922979,0.65647648,21121.0,21120.0,2.92973769]
[1673971923498,0.65647648,21121.0,21120.0,2.62973769]
[1673971923763,0.65647648,21121.0,21120.0,1.89765369]
[1673971924332,0.65647648,21121.0,21120.0,0.946968]
[1673971924606,0.84778101,21121.0,21118.0,0.473512]
[1673971924873,0.02487326,21119.0,21118.0,0.473512]
[1673971925134,0.02487326,21119.0,21118.0,0.947041]
[1673971925389,0.02487326,21119.0,21118.0,0.473512]
[1673971925670,0.11820184,21119.0,21117.0,0.473532]
[1673971925927,0.30892779,21119.0,21116.0,0.623573]
[1673971926197,0.97368832,21119.0,21116.0,0.15]
[1673971926467,0.51281795,21118.0,21116.0,0.15]
[1673971926727,0.322092,21117.0,21116.0,0.15]
[1673971927739,0.322092,21117.0,21116.0,0.03]
[1673971928776,0.73938992,21117.0,21116.0,0.03]
[1673971929858,1.221614,21117.0,21116.0,0.03]
[1673971930117,1.67217648,21117.0,21116.0,0.03]
[1673971930388,1.4411524,21117.0,21116.0,0.03]
[1673971930647,0.99058992,21117.0,21116.0,0.03]
[1673971931401,1.46414192,21117.0,21116.0,0.03]
[1673971931918,1.9147044,21117.0,21116.0,0.03]
[1673971932194,2.20342632,21117.0,21116.0,0.03]
[1673971932435,2.50342632,21117.0,21116.0,0.03]
[1673971932690,2.50342632,21117.0,21109.0,0.473731]
[1673971932955,0.1256,21115.0,21109.0,0.473731]
[1673971933214,0.02487326,21110.0,21109.0,0.473731]
[1673971933504,0.21559921,21110.0,21109.0,0.473731]
[1673971933726,0.02487326,21110.0,21109.0,0.473731]
[1673971934032,0.21559921,21110.0,21107.0,1.35405396]
[1673971934291,0.21559921,21110.0,21109.0,0.473731]
[1673971934554,0.02487326,21110.0,21109.0,0.473731]
[1673971935060,0.02487326,21110.0,21108.0,0.947486]
[1673971935329,0.02487326,21110.0,21107.0,1.35406296]
[1673971935593,0.21559921,21110.0,21107.0,1.35406296]
[1673971936153,0.21559921,21110.0,21107.0,0.41804802]
[1673971936413,0.00057858,21109.0,21107.0,0.41804802]
[1673971936948,0.02535326,21110.0,21107.0,0.41804802]
[1673971936949,0.00048,21110.0,21107.0,0.41804802]
[1673971937206,0.00048,21110.0,21107.0,0.85592335]
[1673971937207,0.02487326,21108.0,21107.0,0.85592335]
[1673971937511,0.02487326,21108.0,21107.0,1.80346835]
[1673971938318,0.21559921,21108.0,21107.0,0.85592335]
[1673971938587,0.02487326,21108.0,21107.0,0.85592335]
[1673971939141,0.02487326,21108.0,21107.0,0.41804802]
[1673971940196,0.02487326,21108.0,21107.0,1.36560002]
[1673971940718,0.02487326,21108.0,21107.0,1.66560002]
[1673971940976,0.00048,21110.0,21107.0,1.79120002]
[1673971941283,0.00048,21110.0,21108.0,1.15206431]
[1673971941797,0.00048,21110.0,21109.0,0.1247]
[1673971942061,0.00048,21110.0,21108.0,0.52486262]
[1673971942062,0.00105858,21110.0,21108.0,0.52486262]
[1673971942324,0.00048,21110.0,21108.0,0.52486262]
[1673971942616,0.00048,21110.0,21108.0,0.15]
[1673971942927,0.00048,21110.0,21108.0,0.84777281]
[1673971943453,0.00048,21110.0,21109.0,0.1249]
[1673971943710,0.00048,21110.0,21109.0,1.85806369]
[1673971943961,0.00048,21110.0,21109.0,1.247462]
[1673971945296,0.00048,21110.0,21108.0,0.22402181]
[1673971945609,0.00048,21110.0,21108.0,1.17150481]
[1673971945873,0.00048,21110.0,21108.0,0.69777081]
[1673971946676,0.00048,21110.0,21109.0,0.77720169]
[1673971946952,0.00048,21110.0,21109.0,1.84916369]
[1673971947221,0.00042,21110.0,21109.0,1.85766369]
[1673971947483,0.0002434,21110.0,21109.0,2.124325]
[1673971948007,0.0002434,21110.0,21109.0,1.85766369]
[1673971948486,0.0002434,21110.0,21109.0,2.09582601]
[1673971948488,0.0002434,21110.0,21109.0,1.84916369]
[1673971948755,0.0002434,21110.0,21109.0,1.85766369]
[1673971949005,0.0002434,21110.0,21109.0,2.38467369]
[1673971949266,0.0002434,21110.0,21109.0,2.33545469]
[1673971949560,0.0002434,21110.0,21109.0,2.46327027]
[1673971949779,0.1502434,21110.0,21109.0,2.6043485]
[1673971950047,0.15,21116.0,21109.0,4.9947474]
[1673971950320,0.15,21116.0,21115.0,0.2511]
[1673971950591,0.15,21116.0,21115.0,2.32358969]
[1673971950945,0.15,21116.0,21115.0,2.33208969]
[1673971951248,0.03137684,21119.0,21115.0,1.84999369]
[1673971951518,0.00057858,21118.0,21115.0,1.72439369]
[1673971951779,0.48407129,21119.0,21114.0,0.599214]
[1673971952032,0.02487326,21116.0,21113.0,0.599127]
[1673971952305,0.15,21114.0,21113.0,0.95082869]
[1673971952577,0.15,21114.0,21113.0,1.42446969]
[1673971952837,0.21559921,21116.0,21113.0,1.42446969]
[1673971953093,0.02487326,21116.0,21113.0,1.42446969]
[1673971953352,0.02487326,21116.0,21114.0,0.3]
[1673971953626,0.02487326,21116.0,21115.0,0.473596]
[1673971953889,0.02545184,21116.0,21115.0,0.947192]
[1673971954140,0.02545184,21116.0,21115.0,0.473596]
[1673971954917,0.02487326,21116.0,21115.0,0.473596]
[1673971955421,0.02487326,21116.0,21114.0,0.47361]
[1673971955707,0.02487326,21116.0,21113.0,0.473635]
[1673971955708,0.02487326,21116.0,21113.0,0.947259]
[1673971956002,0.02487326,21116.0,21112.0,0.69179862]
[1673971956255,1.13787495,21116.0,21112.0,0.21815562]
[1673971956500,0.02487326,21113.0,21112.0,0.21815562]
[1673971956751,0.02487326,21113.0,21112.0,0.69181762]
[1673971957010,0.02487326,21113.0,21112.0,0.51815562]
[1673971957334,0.02487326,21113.0,21110.0,0.598206]
[1673971957552,0.68981879,21113.0,21109.0,0.95786492]
[1673971957806,0.19072595,21112.0,21109.0,0.48415192]
[1673971958066,0.02487326,21110.0,21109.0,1.43161392]
[1673971958593,0.02487326,21110.0,21109.0,0.95788292]
[1673971958853,0.02487326,21110.0,21109.0,0.48415192]
[1673971959120,0.66438995,21112.0,21110.0,0.12536674]
[1673971959367,0.473664,21112.0,21110.0,0.12536674]
[1673971959902,0.44336045,21113.0,21110.0,0.12536674]
[1673971960164,0.44336045,21113.0,21110.0,1.07276074]
[1673971960415,1.39066045,21113.0,21110.0,0.12536674]
[1673971960670,0.44336045,21113.0,21110.0,0.12536674]
[1673971960928,1.1077424,21113.0,21110.0,0.12536674]
[1673971961222,0.38828369,21111.0,21110.0,0.12536674]
[1673971961508,1.33565569,21111.0,21107.0,0.01567024]
[1673971961747,1.33565569,21111.0,21107.0,0.48943424]
[1673971961748,0.51281795,21110.0,21107.0,0.48943424]
[1673971962005,0.322092,21109.0,21107.0,0.48943424]
[1673971962268,0.57900964,21111.0,21107.0,0.01567024]
[1673971962543,0.47429658,21110.0,21107.0,0.01567024]
[1673971963069,0.38828369,21111.0,21108.0,0.947508]
[1673971963335,0.8611,21114.0,21109.0,0.3]
[1673971963938,0.8611,21114.0,21110.0,0.947394]
[1673971964156,0.52832023,21112.0,21110.0,0.473697]
[1673971964384,0.52832023,21112.0,21109.0,0.473724]
[1673971964607,0.71904618,21112.0,21109.0,0.473724]
[1673971964913,1.00198823,21112.0,21108.0,0.473739]
[1673971965202,1.19271418,21112.0,21107.0,0.67741663]
[1673971965441,1.66637818,21112.0,21107.0,0.34480551]
[1673971965707,1.19271018,21112.0,21107.0,0.67742163]
[1673971965968,1.19271018,21112.0,21107.0,0.20366163]
[1673971965969,1.66637418,21112.0,21107.0,0.20366163]
[1673971966228,1.19271018,21112.0,21107.0,0.20366163]
[1673971966739,1.66637418,21112.0,21107.0,0.20366163]
[1673971967002,1.66637418,21112.0,21107.0,0.01567024]
[1673971967003,0.322092,21111.0,21107.0,0.01567024]
[1673971967267,0.322092,21110.0,21107.0,0.01567024]
[1673971967535,0.322092,21109.0,21107.0,0.01567024]
[1673971967802,2.2703429,21108.0,21107.0,0.01421285]
[1673971968602,3.31660944,21108.0,21107.0,0.01421285]
[1673971968855,2.8687969,21108.0,21107.0,0.01421285]
[1673971969125,2.3950429,21108.0,21107.0,0.01421285]
[1673971969395,2.8687969,21108.0,21107.0,0.01421285]
[1673971969648,0.9737809,21108.0,21107.0,0.01421285]
[1673971969928,2.8687969,21108.0,21107.0,0.01421285]
[1673971970745,3.29367548,21108.0,21107.0,0.01421285]
[1673971971294,2.99367548,21108.0,21107.0,0.01421285]
[1673971972081,3.29367548,21108.0,21107.0,0.01421285]
[1673971972333,3.30217548,21108.0,21107.0,0.01421285]
[1673971973119,3.00217548,21108.0,21107.0,0.01421285]
[1673971973368,3.30217548,21108.0,21106.0,0.01628183]
[1673971973625,3.30217548,21108.0,21105.0,0.01650582]
[1673971973626,0.02746655,21106.0,21105.0,0.01650582]
[1673971973883,2.81736309,21106.0,21105.0,0.01650582]
[1673971974097,2.66955055,21106.0,21105.0,0.01650582]
[1673971974382,3.11736309,21106.0,21105.0,0.01650582]
[1673971974655,2.66955055,21106.0,21105.0,0.01650582]
[1673971974887,2.36955055,21106.0,21105.0,0.01650582]
[1673971975703,2.81439423,21106.0,21105.0,0.01650582]
[1673971976454,2.34059623,21106.0,21105.0,0.01650582]
[1673971978030,2.34059623,21106.0,21100.0,0.56319306]
[1673971978312,0.51281795,21105.0,21100.0,0.08926906]
[1673971978571,2.40823095,21104.0,21100.0,0.08926906]
[1673971978828,0.51281795,21103.0,21100.0,0.08926906]
[1673971979089,1.743756,21102.0,21100.0,0.08926906]
[1673971979348,0.322092,21101.0,21100.0,0.08926906]
[1673971979640,0.473888,21102.0,21100.0,0.08926906]
[1673971980637,0.473886,21103.0,21100.0,0.08926906]
[1673971980929,0.47231023,21106.0,21100.0,1.03713206]
[1673971981148,0.94612723,21106.0,21100.0,1.03713206]
[1673971981395,1.61065118,21106.0,21100.0,1.03713206]
[1673971981659,0.42775114,21104.0,21100.0,1.03713206]
[1673971981912,0.00057858,21103.0,21100.0,1.03713206]
[1673971982180,0.19130453,21103.0,21100.0,0.56320206]
[1673971982430,0.00057858,21103.0,21100.0,0.56320206]
[1673971982678,0.00057858,21103.0,21100.0,1.03713506]
[1673971982933,0.42775114,21104.0,21100.0,0.56320206]
[1673971983184,0.90160814,21104.0,21100.0,1.03713506]
[1673971983443,0.00057858,21103.0,21100.0,1.03713506]
[1673971983718,1.37545114,21104.0,21100.0,1.03713506]
[1673971983978,1.37543714,21104.0,21100.0,0.08926906]
[1673971984238,1.56616309,21104.0,21100.0,0.08926906]
[1673971984490,0.32267058,21103.0,21100.0,0.08926906]
[1673971984783,0.322092,21102.0,21100.0,0.08926906]
[1673971985059,0.322092,21101.0,21100.0,0.56319606]
[1673971985313,0.90160914,21104.0,21100.0,1.03712906]
[1673971985867,0.42775114,21104.0,21100.0,1.01212906]
[1673971986160,1.37545614,21104.0,21100.0,0.06426906]
[1673971986422,0.00057858,21103.0,21100.0,0.06426906]
[1673971986696,0.473888,21102.0,21100.0,0.06426906]
[1673971987211,0.00057858,21101.0,21100.0,0.06426906]
[1673971987504,0.473888,21102.0,21100.0,0.06426906]
[1673971987807,0.02746655,21106.0,21101.0,0.47720169]
[1673971988064,0.02746655,21106.0,21102.0,2.19883269]
[1673971988344,0.02746655,21106.0,21103.0,0.48570169]
[1673971988606,0.02746655,21106.0,21104.0,1.97968907]
[1673971988865,0.02746655,21106.0,21105.0,0.1246]
[1673971989415,0.02746655,21106.0,21105.0,1.072242]
[1673971989695,0.02746655,21106.0,21105.0,1.85794369]
[1673971989961,0.02746655,21106.0,21105.0,1.55794369]
[1673971990219,0.02746655,21106.0,21105.0,0.947642]
[1673971991019,0.02746655,21106.0,21104.0,0.72864138]
[1673971991296,1.42410218,21106.0,21101.0,0.473896]
[1673971991536,0.51281795,21105.0,21101.0,0.473896]
[1673971991806,0.19072595,21105.0,21101.0,0.473896]
[1673971992058,0.19072595,21105.0,21101.0,0.473911]
[1673971992592,0.19072595,21105.0,21101.0,0.947822]
[1673971992837,0.12222462,21104.0,21100.0,0.54018206]
[1673971993119,0.32267058,21103.0,21100.0,0.54018306]
[1673971993372,0.19130453,21103.0,21100.0,0.54118306]
[1673971993649,0.473839,21105.0,21100.0,0.65556301]
[1673971993928,1.52234458,21106.0,21100.0,1.12949601]
[1673971994177,1.86305153,21106.0,21100.0,1.12949601]
[1673971994712,1.95929488,21106.0,21100.0,1.12949601]
[1673971994963,0.40950023,21104.0,21100.0,0.65656301]
[1673971995262,0.00057858,21103.0,21100.0,1.13049601]
[1673971995483,0.19130453,21103.0,21100.0,1.13049601]
[1673971995744,0.00057858,21103.0,21100.0,1.13049601]
[1673971996267,0.04505048,21106.0,21101.0,0.3]
[1673971996590,0.04505048,21106.0,21102.0,1.40353506]
[1673971997296,0.04505048,21106.0,21104.0,0.15]
[1673971997843,0.00057858,21105.0,21104.0,0.15]
[1673971998089,0.04505048,21106.0,21104.0,0.15]
[1673971998368,0.04505048,21106.0,21105.0,0.15]
[1673971998369,0.51885448,21106.0,21105.0,0.15]
[1673971998864,0.51943306,21106.0,21104.0,0.15]
[1673971999155,0.04562906,21106.0,21103.0,0.473865]
[1673971999408,0.23635501,21106.0,21103.0,0.473865]
[1673971999659,0.04562906,21106.0,21103.0,0.473865]
[1673971999915,0.04562906,21106.0,21103.0,0.947731]
[1673972000191,0.04505048,21106.0,21103.0,0.947731]
[1673972000994,0.04505048,21106.0,21104.0,0.66517327]
[1673972001238,0.04505048,21106.0,21105.0,1.721463]
[1673972001840,0.04505048,21106.0,21105.0,2.20716469]
[1673972002117,0.04505048,21106.0,21105.0,2.80658569]
[1673972002408,0.04505048,21106.0,21105.0,2.68098569]
[1673972002933,0.04505048,21106.0,21105.0,4.23846077]
[1673972003241,0.04505048,21106.0,21105.0,4.50520464]
[1673972003523,0.04505048,21106.0,21105.0,4.81090976]
[1673972003786,0.04505048,21106.0,21105.0,4.50751501]
[1673972004055,0.15,21109.0,21105.0,4.50751501]
[1673972004056,0.15,21109.0,21105.0,6.22046514]
[1673972004330,0.15,21109.0,21108.0,1.11423109]
[1673972004603,0.15,21109.0,21108.0,3.53431661]
[1673972004870,0.15,21109.0,21108.0,5.03996734]
[1673972005131,0.15,21109.0,21108.0,4.68606212]
[1673972005387,0.15,21111.0,21108.0,4.69518122]
[1673972005690,0.15,21111.0,21110.0,0.1247]
[1673972005940,0.15,21111.0,21109.0,0.4247]
[1673972006222,0.15,21111.0,21110.0,0.473709]
[1673972006738,0.15,21111.0,21110.0,1.25091069]
[1673972007015,0.15,21111.0,21110.0,0.95091069]
[1673972007291,0.15,21111.0,21110.0,1.25091069]
[1673972007554,0.15,21111.0,21110.0,1.38401069]
[1673972007809,0.15,21111.0,21110.0,1.52547897]
[1673972008853,0.15,21111.0,21110.0,1.38401069]
[1673972009370,0.00562661,21112.0,21110.0,1.38401069]
[1673972009688,0.00562661,21112.0,21111.0,1.19917434]
[1673972009901,0.00562661,21112.0,21111.0,0.88715865]
[1673972010443,0.00562661,21112.0,21110.0,0.473709]
[1673972010698,0.19635256,21112.0,21108.0,0.96837246]
[1673972010991,0.51281795,21111.0,21108.0,0.473753]
[1673972011228,0.32267058,21110.0,21106.0,0.473778]
[1673972011489,0.51281795,21109.0,21106.0,0.473778]
[1673972011746,0.19072595,21109.0,21106.0,0.473778]
[1673972012307,0.00057858,21110.0,21105.0,0.947602]
[1673972012527,0.44361095,21109.0,21104.0,0.98457965]
[1673972012800,0.19072595,21108.0,21104.0,0.98457965]
[1673972013061,0.19130453,21107.0,21102.0,0.947762]
[1673972013316,0.19130453,21107.0,21102.0,0.473876]
[1673972014119,0.19130453,21107.0,21101.0,0.66176127]
[1673972014352,0.47435758,21107.0,21106.0,0.15]
[1673972014889,0.32267058,21107.0,21106.0,0.15]
[1673972015158,0.322092,21107.0,21106.0,0.15]
[1673972015428,0.56891095,21109.0,21106.0,0.15]
[1673972015684,0.56891095,21109.0,21105.0,0.47382]
[1673972015944,0.795846,21108.0,21101.0,1.95719067]
[1673972016250,0.795846,21108.0,21103.0,0.473861]
[1673972016251,0.19072595,21107.0,21103.0,0.473861]
[1673972016474,0.88850527,21109.0,21104.0,0.3]
[1673972016757,0.88850527,21109.0,21105.0,0.94762]
[1673972016758,0.44361095,21109.0,21105.0,0.94762]
[1673972017592,0.00057858,21108.0,21105.0,0.94762]
[1673972018971,0.00915436,21107.0,21105.0,0.94762]
[1673972019478,0.00915436,21107.0,21105.0,0.47381]
[1673972019734,0.19988031,21107.0,21104.0,0.473838]
[1673972019996,0.19988031,21107.0,21103.0,0.73343602]
[1673972020499,0.6676683,21107.0,21103.0,0.73343602]
[1673972021535,0.47694235,21107.0,21103.0,0.73343602]
[1673972022046,0.6676683,21107.0,21103.0,0.73343602]
[1673972022634,0.6676683,21107.0,21103.0,0.25958002]
[1673972022635,0.00057858,21106.0,21103.0,0.25958002]
[1673972022839,0.95072135,21107.0,21103.0,0.25958002]
[1673972023367,0.322092,21106.0,21103.0,0.25958002]
[1673972023622,1.79470567,21105.0,21100.0,0.06926906]
[1673972023894,0.51281795,21104.0,21100.0,0.06926906]
[1673972024140,0.47387,21103.0,21100.0,0.06926906]
[1673972024405,0.66459595,21103.0,21100.0,0.06926906]
[1673972024672,0.00057858,21103.0,21100.0,0.06926906]
[1673972024925,0.00057858,21103.0,21100.0,0.54319906]
[1673972025199,0.00057858,21103.0,21100.0,1.01713206]
[1673972025446,0.00057858,21103.0,21100.0,0.54319906]
[1673972026234,0.00057858,21103.0,21100.0,1.01713206]
[1673972026750,0.00057858,21103.0,21100.0,0.54320206]
[1673972027523,0.00057858,21103.0,21100.0,1.01713506]
[1673972028786,0.99880867,21105.0,21100.0,1.16713506]
[1673972029088,0.53758935,21103.0,21100.0,0.06926906]
[1673972029292,1.269868,21102.0,21100.0,0.06926906]
[1673972029536,0.322092,21101.0,21100.0,0.06926906]
[1673972029784,0.796003,21101.0,21100.0,0.06926906]
[1673972030315,0.473911,21101.0,21100.0,0.06916869]
[1673972030569,0.796003,21101.0,21100.0,0.06916869]
[1673972030816,0.322092,21101.0,21100.0,0.06916869]
[1673972031078,0.473888,21102.0,21100.0,0.06916869]
[1673972031336,0.322092,21101.0,21100.0,0.06916869]
[1673972032111,0.32267058,21101.0,21100.0,0.54310169]
[1673972032385,0.53750921,21103.0,21100.0,0.06916869]
[1673972032660,0.322092,21102.0,21100.0,0.54310169]
[1673972032954,0.322092,21101.0,21100.0,0.54310169]
[1673972033448,0.00057858,21102.0,21100.0,0.54310169]
[1673972034289,1.269914,21101.0,21100.0,0.06916869]
[1673972035334,0.947822,21101.0,21100.0,0.06916869]
[1673972035839,0.473911,21101.0,21100.0,0.06916869]
[1673972036090,1.01137621,21103.0,21100.0,1.01703469]
[1673972036091,0.15,21103.0,21100.0,1.01703469]
[1673972036611,0.75126834,21106.0,21100.0,1.01703469]
[1673972036612,0.53694834,21106.0,21100.0,1.01703469]
[1673972036861,0.53694834,21106.0,21100.0,0.06916869]
[1673972036862,0.473872,21103.0,21100.0,0.06916869]
[1673972037137,0.322092,21102.0,21100.0,0.06916869]
[1673972037393,0.86384608,21102.0,21100.0,0.05416869]
[1673972037684,0.86384608,21102.0,21098.0,0.48950588]
[1673972037685,0.59583131,21100.0,21098.0,0.96347188]
[1673972037942,0.59583131,21100.0,21098.0,0.48950588]
[1673972037943,1.17135284,21100.0,21098.0,0.48950588]
[1673972038243,0.98062689,21100.0,21098.0,0.48950588]
[1673972038515,0.98062689,21100.0,21098.0,0.01554488]
[1673972038773,0.98062689,21100.0,21099.0,0.947912]
[1673972039828,1.45455989,21100.0,21098.0,0.01554488]
[1673972040078,0.98062689,21100.0,21099.0,0.473956]
[1673972040339,0.98062689,21100.0,21098.0,0.01554488]
[1673972040578,1.92849289,21100.0,21098.0,0.01554488]
[1673972041096,0.322092,21099.0,21098.0,0.01554488]
[1673972041364,1.270004,21099.0,21098.0,0.01554488]
[1673972041633,0.947912,21099.0,21098.0,0.01554488]
[1673972042652,1.270004,21099.0,21098.0,0.01554488]
[1673972042919,1.71122995,21099.0,21098.0,0.01554488]
[1673972043158,1.520504,21099.0,21098.0,0.01554488]
[1673972043928,1.520504,21099.0,21094.0,0.01221536]
[1673972043929,0.43342147,21098.0,21094.0,0.01221536]
[1673972044186,0.1247,21096.0,21094.0,0.01221536]
[1673972044432,1.270182,21095.0,21094.0,0.01221536]
[1673972044691,2.02957381,21095.0,21094.0,0.01221536]
[1673972044947,1.64776886,21095.0,21090.0,0.00922208]
[1673972045189,0.4462625,21094.0,21090.0,0.00922208]
[1673972045469,0.51285795,21093.0,21090.0,0.00922208]
[1673972045703,0.322133,21092.0,21090.0,0.00922208]
[1673972045955,0.474003,21097.0,21090.0,0.00922208]
[1673972045956,0.67412569,21097.0,21091.0,0.2422528]
[1673972046207,0.474005,21097.0,21092.0,0.667486]
[1673972046459,0.47823451,21098.0,21092.0,1.072615]
[1673972046702,0.47823451,21098.0,21093.0,0.493367]
[1673972046949,0.47823451,21098.0,21094.0,0.948114]
[1673972047470,0.47823451,21098.0,21094.0,0.938114]
[1673972047729,0.00057858,21097.0,21094.0,0.938114]
[1673972048004,0.59583131,21100.0,21096.0,0.1256]
[1673972048245,0.59583131,21100.0,21097.0,1.74411469]
[1673972048572,1.1163087,21100.0,21097.0,0.1256]
[1673972048781,1.1163087,21100.0,21095.0,0.948047]
[1673972048782,0.00057858,21099.0,21095.0,0.948047]
[1673972049036,0.34072595,21098.0,21095.0,1.422113]
[1673972049319,0.34072595,21098.0,21095.0,0.94809]
[1673972049867,0.34072595,21098.0,21093.0,0.474088]
[1673972050123,0.15,21095.0,21094.0,0.474065]
[1673972050381,0.15057858,21095.0,21094.0,0.474065]
[1673972050651,0.15,21095.0,21094.0,0.474065]
[1673972050897,0.15,21095.0,21094.0,1.141481]
[1673972051186,0.15,21098.0,21094.0,1.141481]
[1673972051444,0.15,21098.0,21093.0,0.84542949]
[1673972051445,0.00057858,21097.0,21093.0,0.84542949]
[1673972051701,0.19130453,21097.0,21093.0,0.37133949]
[1673972051963,0.66530853,21097.0,21093.0,0.37133949]
[1673972052474,0.9741342,21098.0,21094.0,0.3]
[1673972052727,0.00057858,21097.0,21093.0,0.84542949]
[1673972052974,0.5001342,21098.0,21095.0,0.15]
[1673972053261,0.5001342,21098.0,21096.0,0.193335]
[1673972053488,0.5001342,21098.0,21095.0,0.15]
[1673972053760,0.5001342,21098.0,21094.0,0.624058]
[1673972053984,1.16483815,21098.0,21093.0,0.37133949]
[1673972054244,1.3692261,21098.0,21093.0,0.37133949]
[1673972054495,0.69086015,21098.0,21093.0,1.31950849]
[1673972055043,0.69086015,21098.0,21093.0,0.84542949]
[1673972055239,0.69086015,21098.0,21093.0,1.31951949]
[1673972055509,0.69086015,21098.0,21093.0,0.37133949]
[1673972055771,0.948002,21097.0,21093.0,0.37133949]
[1673972056035,0.00057858,21096.0,21093.0,1.31951649]
[1673972056288,0.5001342,21098.0,21093.0,1.31951649]
[1673972056555,0.5001342,21098.0,21094.0,0.193357]
[1673972056813,0.5001342,21098.0,21095.0,1.615469]
[1673972057103,1.06977231,21100.0,21096.0,0.193334]
[1673972057365,0.00057858,21099.0,21096.0,0.474023]
[1673972057652,1.06977231,21100.0,21096.0,0.474023]
[1673972057911,0.59583131,21100.0,21099.0,0.0756]
[1673972058178,0.59583131,21100.0,21099.0,0.549556]
[1673972058439,0.59640989,21100.0,21099.0,0.549556]
[1673972058713,0.59583131,21100.0,21099.0,0.549556]
[1673972059024,0.59583131,21100.0,21099.0,1.023512]
[1673972059275,0.59583131,21100.0,21099.0,1.51681]
[1673972059524,0.59583131,21100.0,21099.0,2.87298215]
[1673972059796,0.59583131,21100.0,21099.0,4.30328607]
[1673972060046,0.59583131,21100.0,21099.0,4.75979329]
[1673972060295,0.59583131,21100.0,21099.0,4.90153841]
[1673972061351,0.15,21103.0,21099.0,4.61841647]
[1673972061666,0.15,21103.0,21102.0,0.1524]